bitfinex-derivatives/quotes_BTCF0:USTF0_20250716
["timestamp","ask_amount","ask_price","bid_price","bid_amount"]
[1752675133435,0.18806466,118530.0,118520.0,0.73794391]
[1752675133637,0.18806466,118530.0,118520.0,1.37854381]
[1752675133936,0.18806466,118530.0,118520.0,0.6623763]
[1752675134236,0.18806466,118530.0,118520.0,1.37854381]
[1752675135132,0.18810466,118530.0,118520.0,1.37854381]
[1752675135332,0.18810466,118530.0,118520.0,0.73794381]
[1752675135534,0.18810466,118530.0,118520.0,1.37850381]
[1752675135727,0.18810466,118530.0,118520.0,0.6623363]
[1752675135933,0.18810466,118530.0,118520.0,0.8310429]
[1752675136440,0.18810466,118530.0,118520.0,0.8278429]
[1752675137239,0.18810466,118530.0,118520.0,1.37530381]
[1752675137438,0.01941226,118530.0,118520.0,1.37530381]
[1752675137739,0.18810466,118530.0,118520.0,1.37851381]
[1752675139130,0.18810466,118530.0,118520.0,0.56924721]
[1752675139435,0.18810466,118530.0,118520.0,0.830733]
[1752675139636,0.18810466,118530.0,118520.0,1.37819391]
[1752675140040,0.18810466,118530.0,118520.0,1.20948721]
[1752675140338,0.18810466,118530.0,118520.0,1.37819391]
[1752675140534,0.18810466,118530.0,118520.0,0.830733]
[1752675141934,0.18810466,118530.0,118520.0,0.6620263]
[1752675142745,0.18810466,118530.0,118520.0,0.830733]
[1752675143127,0.18810466,118530.0,118520.0,0.6620263]
[1752675143532,0.18810466,118530.0,118520.0,0.830733]
[1752675143736,0.18810466,118530.0,118520.0,0.6620263]
[1752675144136,0.73556557,118530.0,118520.0,0.0217863]
[1752675144331,0.73556557,118530.0,118520.0,0.6617063]
[1752675144532,0.18810466,118530.0,118520.0,0.6617063]
[1752675145036,0.18810466,118530.0,118520.0,0.830413]
[1752675145437,0.18810466,118530.0,118520.0,1.37787391]
[1752675146342,0.18810466,118530.0,118520.0,0.830413]
[1752675146542,0.19010466,118530.0,118520.0,0.830413]
[1752675147341,0.19019712,118530.0,118520.0,0.6617063]
[1752675148147,0.73765803,118530.0,118520.0,0.0217863]
[1752675148339,0.73765803,118530.0,118520.0,0.6615063]
[1752675148546,0.79783138,118530.0,118520.0,0.6615063]
[1752675148845,0.96657538,118530.0,118520.0,0.6615063]
[1752675149347,1.71657538,118530.0,118520.0,0.6615063]
[1752675150350,1.16911447,118530.0,118520.0,0.6615063]
[1752675150544,1.71657538,118530.0,118520.0,0.6615063]
[1752675151644,1.63693731,118530.0,118520.0,0.6615063]
[1752675151842,1.71678513,118530.0,118520.0,0.6615063]
[1752675152840,0.1687208,118510.0,118500.0,0.0276529]
[1752675153052,0.73564335,118510.0,118500.0,0.6669329]
[1752675153350,0.18818244,118510.0,118500.0,0.6669329]
[1752675153746,0.73564335,118510.0,118500.0,0.6669329]
[1752675153951,0.18818244,118510.0,118500.0,0.6669329]
[1752675155550,0.18818244,118510.0,118500.0,0.835668]
[1752675155749,0.18822244,118510.0,118500.0,0.6669329]
[1752675156651,0.18822244,118510.0,118500.0,0.0274529]
[1752675156952,0.18822244,118510.0,118500.0,0.6668129]
[1752675157552,0.18822244,118510.0,118500.0,0.835548]
[1752675157852,0.19022244,118510.0,118500.0,0.835548]
[1752675158448,0.19022244,118510.0,118500.0,1.48300891]
[1752675158652,0.19022244,118510.0,118500.0,0.84364891]
[1752675158854,0.19022244,118510.0,118500.0,1.48288891]
[1752675159043,0.19022244,118510.0,118500.0,0.935428]
[1752675159247,0.19022244,118510.0,118500.0,1.48288891]
[1752675159554,0.19022244,118510.0,118500.0,1.38288891]
[1752675160050,0.19022244,118510.0,118500.0,0.0274529]
[1752675160247,0.19022244,118510.0,118500.0,0.6666129]
[1752675160760,0.19022244,118510.0,118500.0,0.835348]
[1752675161053,0.18922244,118510.0,118500.0,0.835348]
[1752675161544,0.18822244,118510.0,118500.0,0.835348]
[1752675161750,0.19022244,118510.0,118500.0,0.835348]
[1752675163354,0.19022244,118510.0,118500.0,1.38280891]
[1752675163657,0.00204,118510.0,118500.0,1.48280891]
[1752675163855,0.00204,118510.0,118500.0,2.03026982]
[1752675164055,0.2109108,118530.0,118520.0,0.1687066]
[1752675164358,0.01947959,118530.0,118520.0,1.47431276]
[1752675165260,4e-05,118530.0,118520.0,1.47431276]
[1752675165651,0.10254698,118570.0,118530.0,0.1]
[1752675165948,0.27240536,118570.0,118560.0,0.71611061]
[1752675166154,0.27240536,118570.0,118560.0,1.35499061]
[1752675166364,0.27240536,118570.0,118560.0,0.63888]
[1752675167059,0.27240536,118570.0,118560.0,0.64748251]
[1752675167254,0.27240536,118570.0,118560.0,0.00860251]
[1752675167466,0.27240536,118570.0,118560.0,0.6388]
[1752675168861,0.27540536,118570.0,118560.0,0.6388]
[1752675169061,0.1686497,118560.0,118550.0,0.01883291]
[1752675169360,0.18808916,118560.0,118550.0,0.65751291]
[1752675170466,0.18808916,118560.0,118550.0,0.82617671]
[1752675170670,0.18908916,118560.0,118550.0,0.65751291]
[1752675170970,0.18908916,118560.0,118550.0,0.63868]
[1752675171170,0.1686638,118550.0,118540.0,1.18503108]
[1752675171375,0.18810326,118550.0,118540.0,1.90000661]
[1752675172367,0.18810326,118550.0,118540.0,1.26140661]
[1752675172567,0.73556417,118550.0,118540.0,1.83089116]
[1752675172773,0.73656417,118550.0,118540.0,1.83089116]
[1752675172973,0.18910326,118550.0,118540.0,1.83089116]
[1752675173174,0.18910326,118550.0,118540.0,1.76289988]
[1752675174263,0.19110326,118550.0,118540.0,1.76289988]
[1752675174972,0.19110326,118550.0,118540.0,1.12449988]
[1752675175174,0.19110326,118550.0,118540.0,1.76277988]
[1752675176070,0.73856417,118550.0,118540.0,1.76277988]
[1752675178576,0.19110326,118550.0,118540.0,1.76277988]
[1752675178972,0.19110326,118550.0,118540.0,0.65683108]
[1752675180775,0.73856417,118550.0,118540.0,0.65683108]
[1752675185077,0.19110326,118550.0,118540.0,0.65683108]
[1752675185386,0.73856417,118550.0,118540.0,0.65683108]
[1752675189077,1.45473708,118550.0,118540.0,0.49238115]
[1752675189281,0.1686781,118540.0,118530.0,0.68150338]
[1752675189482,0.73557847,118540.0,118530.0,0.63748]
[1752675189783,0.18811756,118540.0,118530.0,0.63748]
[1752675189982,0.73557847,118540.0,118530.0,0.63748]
[1752675190384,0.73757847,118540.0,118530.0,0.63748]
[1752675191484,0.19011756,118540.0,118530.0,0.8061723]
[1752675191678,0.19011756,118540.0,118530.0,1.18494091]
[1752675191880,0.19011756,118540.0,118530.0,0.63748]
[1752675192081,0.19011756,118540.0,118530.0,0.70372142]
[1752675192785,0.19011756,118540.0,118520.0,0.00848085]
[1752675192786,0.1686923,118530.0,118520.0,0.00848085]
[1752675192970,0.18813176,118530.0,118520.0,0.63732]
[1752675193176,0.18813176,118530.0,118520.0,0.64575033]
[1752675193976,0.18913176,118530.0,118520.0,0.64567033]
[1752675194179,0.18913176,118530.0,118520.0,0.63724]
[1752675194580,0.18913176,118530.0,118520.0,0.64557602]
[1752675194980,0.18913176,118530.0,118520.0,0.81428252]
[1752675195177,0.18913176,118530.0,118520.0,0.91428252]
[1752675195379,0.18913176,118530.0,118520.0,1.46174343]
[1752675195578,0.18913176,118530.0,118520.0,0.00833602]
[1752675195783,0.18913176,118530.0,118520.0,0.6372]
[1752675195984,0.18913176,118530.0,118520.0,0.64548862]
[1752675196283,0.18913176,118530.0,118520.0,0.00828862]
[1752675196583,0.18913176,118530.0,118520.0,0.63708]
[1752675197284,0.18913176,118530.0,118520.0,0.64570121]
[1752675197883,0.18913176,118530.0,118520.0,0.00862121]
[1752675198085,0.18913176,118530.0,118520.0,0.63708]
[1752675198484,0.1687065,118520.0,118510.0,1.42207273]
[1752675198684,0.18814596,118520.0,118510.0,2.05907273]
[1752675198879,0.18814596,118520.0,118510.0,2.60653364]
[1752675199181,0.18814596,118520.0,118510.0,2.43782124]
[1752675199382,0.18814596,118520.0,118510.0,1.25336033]
[1752675199586,0.18814596,118520.0,118510.0,1.89036033]
[1752675200288,0.18814596,118520.0,118510.0,1.42208103]
[1752675200688,0.18814596,118520.0,118510.0,1.43058268]
[1752675200985,0.18814596,118520.0,118510.0,1.89878198]
[1752675202383,0.18814596,118520.0,118510.0,2.06750268]
[1752675202585,0.18814596,118520.0,118510.0,1.43058268]
[1752675202884,0.18814596,118520.0,118510.0,2.06746268]
[1752675203190,0.18814596,118520.0,118510.0,2.06738268]
[1752675203390,0.18814596,118520.0,118510.0,1.89866198]
[1752675203691,0.1687349,118500.0,118490.0,0.01923403]
[1752675203885,0.73563527,118500.0,118490.0,0.01903403]
[1752675204083,0.73563527,118500.0,118490.0,0.65575403]
[1752675205087,0.65496776,118500.0,118490.0,0.65575403]
[1752675205686,0.65496776,118500.0,118490.0,0.01903403]
[1752675206084,0.65496776,118500.0,118490.0,0.65571403]
[1752675206586,0.65500776,118500.0,118490.0,3e-08]
[1752675206792,1.15500776,118500.0,118490.0,0.63664003]
[1752675207090,1.23532684,118500.0,118490.0,3e-08]
[1752675207386,1.23532684,118500.0,118490.0,0.63664003]
[1752675207784,1.23527924,118500.0,118490.0,0.63664003]
[1752675209282,0.68816676,118500.0,118490.0,0.80538913]
[1752675209482,0.68816676,118500.0,118490.0,3e-08]
[1752675209785,1.23527924,118500.0,118490.0,0.63652003]
[1752675210190,0.68816676,118500.0,118490.0,0.63652003]
[1752675210493,1.23527924,118500.0,118490.0,3e-08]
[1752675210795,0.73527924,118500.0,118490.0,3e-08]
[1752675210985,0.73527924,118500.0,118490.0,0.63648003]
[1752675211187,0.73527924,118500.0,118490.0,0.63644003]
[1752675211588,0.73527924,118500.0,118490.0,3e-08]
[1752675211994,0.73527924,118500.0,118490.0,0.63644003]
[1752675212488,0.73527924,118500.0,118490.0,3e-08]
[1752675212689,0.1687634,118480.0,118470.0,0.0002]
[1752675212888,0.1687919,118460.0,118450.0,1.16676]
[1752675213089,0.1687919,118460.0,118450.0,2.05862749]
[1752675213800,0.1687919,118460.0,118450.0,2.6142069]
[1752675214384,0.1687919,118460.0,118450.0,2.7142069]
[1752675215293,0.1688319,118460.0,118450.0,2.8408056]
[1752675215491,0.1688319,118460.0,118450.0,2.7986045]
[1752675215990,0.1688319,118460.0,118450.0,2.8016045]
[1752675216495,4e-05,118460.0,118450.0,2.8016045]
[1752675216895,0.1688319,118460.0,118450.0,2.1652445]
[1752675217096,0.1688319,118460.0,118450.0,2.8014445]
[1752675217397,0.1688319,118460.0,118450.0,2.06985442]
[1752675217793,0.1688319,118460.0,118450.0,1.43373442]
[1752675218094,0.1688319,118460.0,118450.0,2.06989442]
[1752675218293,0.1688319,118460.0,118450.0,1.90104832]
[1752675218506,0.1688319,118460.0,118450.0,2.06985442]
[1752675218796,0.71594438,118460.0,118450.0,0.73448832]
[1752675218991,0.71594438,118460.0,118450.0,0.73444832]
[1752675219390,0.73527546,118460.0,118450.0,0.73444832]
[1752675219800,0.18816298,118460.0,118450.0,0.73444832]
[1752675220100,0.18816298,118460.0,118450.0,0.73440832]
[1752675221900,0.18816298,118460.0,118450.0,0.90321442]
[1752675224304,0.18816298,118460.0,118450.0,0.73440832]
[1752675225104,0.18816298,118460.0,118450.0,0.90321432]
[1752675226308,0.18816298,118460.0,118450.0,0.73440832]
[1752675226810,0.18816298,118460.0,118450.0,0.90321432]
[1752675227107,0.18816298,118460.0,118450.0,0.73440832]
[1752675227803,0.18816298,118460.0,118450.0,0.90321432]
[1752675228009,0.18816298,118460.0,118450.0,0.73440832]
[1752675229108,0.18816298,118460.0,118450.0,0.73392832]
[1752675230104,0.18816298,118460.0,118450.0,0.90273432]
[1752675230904,0.18816298,118460.0,118450.0,0.73392832]
[1752675230905,0.6552234,118460.0,118450.0,0.73392832]
[1752675231514,0.6552234,118460.0,118450.0,0.73364832]
[1752675232116,0.6552234,118460.0,118450.0,0.665372]
[1752675232305,0.6552234,118460.0,118450.0,0.02162507]
[1752675232612,0.6552234,118460.0,118450.0,0.65682507]
[1752675233104,1.1552234,118460.0,118450.0,0.65682507]
[1752675234508,0.68816298,118460.0,118450.0,0.65682507]
[1752675234708,1.1552234,118460.0,118450.0,0.19886186]
[1752675234908,1.1552234,118460.0,118450.0,0.66513586]
[1752675237008,1.1552234,118460.0,118450.0,0.83394186]
[1752675237211,1.1552234,118460.0,118450.0,0.66513586]
[1752675237614,0.68816298,118460.0,118450.0,0.83394186]
[1752675237809,1.1552234,118460.0,118450.0,0.83394186]
[1752675238816,0.6552234,118460.0,118450.0,0.83394186]
[1752675239016,0.6552234,118460.0,118450.0,0.66513586]
[1752675240619,0.18816298,118460.0,118450.0,0.66513586]
[1752675240918,0.6552234,118460.0,118450.0,0.66513586]
[1752675241709,0.6552234,118460.0,118450.0,0.83394186]
[1752675241917,0.18816298,118460.0,118450.0,0.66513586]
[1752675242310,0.18816298,118460.0,118450.0,1.30100228]
[1752675242515,0.18816298,118460.0,118450.0,0.93394186]
[1752675242722,0.18816298,118460.0,118450.0,1.30100228]
[1752675242922,0.18816298,118460.0,118450.0,1.40100228]
[1752675243316,0.18816298,118460.0,118450.0,1.30100228]
[1752675243718,0.6552234,118460.0,118450.0,0.03005586]
[1752675244017,0.6552234,118460.0,118450.0,0.66445586]
[1752675244217,0.6552234,118460.0,118450.0,0.66441586]
[1752675244522,0.6552234,118460.0,118450.0,0.65598507]
[1752675244719,0.6552234,118460.0,118450.0,0.02162507]
[1752675244915,0.8240634,118460.0,118450.0,7e-08]
[1752675245116,0.8240634,118460.0,118450.0,0.57853447]
[1752675245322,0.88444958,118460.0,118450.0,0.57853447]
[1752675245717,0.8240634,118460.0,118450.0,0.57853447]
[1752675246723,1.3240634,118460.0,118450.0,0.57853447]
[1752675246918,0.85700298,118460.0,118450.0,0.57853447]
[1752675247224,1.40451913,118460.0,118450.0,0.57853447]
[1752675247416,1.46490531,118460.0,118450.0,0.57853447]
[1752675249225,1.29606531,118460.0,118450.0,0.57853447]
[1752675249428,0.74854916,118460.0,118450.0,0.57853447]
[1752675250227,0.68816298,118460.0,118450.0,0.57853447]
[1752675250826,1.29606531,118460.0,118450.0,0.57853447]
[1752675251028,1.29606531,118460.0,118450.0,0.59762939]
[1752675251823,1.29606531,118460.0,118450.0,0.57524449]
[1752675252021,1.29606531,118460.0,118450.0,0.65289492]
[1752675252626,1.29606531,118460.0,118450.0,2e-08]
[1752675252928,0.1688203,118440.0,118430.0,2e-08]
[1752675253221,0.1688346,118430.0,118420.0,0.01035663]
[1752675253426,0.1688631,118410.0,118400.0,0.00010445]
[1752675253632,0.71637925,118410.0,118400.0,0.01014801]
[1752675253821,0.73578306,118410.0,118400.0,0.00010445]
[1752675254124,0.18826691,118410.0,118400.0,0.63368]
[1752675254424,0.73578306,118410.0,118400.0,0.63368]
[1752675254627,0.73578306,118410.0,118400.0,0.5643866]
[1752675254815,0.1688774,118400.0,118390.0,0.07852451]
[1752675255020,0.1688774,118400.0,118390.0,0.6336]
[1752675256128,0.1688774,118400.0,118390.0,0.8024916]
[1752675256422,0.2955275,118410.0,118400.0,0.1688774]
[1752675256630,0.1688774,118400.0,118390.0,1.54540802]
[1752675256817,0.1688774,118400.0,118390.0,0.01096757]
[1752675257024,0.1688774,118400.0,118390.0,0.64448757]
[1752675258029,0.1688774,118400.0,118390.0,0.01096757]
[1752675258424,0.71639355,118400.0,118390.0,0.64440757]
[1752675258928,0.1688774,118400.0,118390.0,0.64440757]
[1752675260129,0.1688774,118400.0,118390.0,0.81329917]
[1752675260818,0.1688774,118400.0,118390.0,0.81229917]
[1752675261023,0.1688774,118400.0,118390.0,0.64340757]
[1752675261331,0.1688774,118400.0,118390.0,0.81229917]
[1752675261730,0.1688774,118400.0,118390.0,0.91229917]
[1752675262029,0.18824678,118400.0,118390.0,1.45981532]
[1752675262230,0.18824074,118400.0,118390.0,1.45981532]
[1752675262925,0.18824074,118400.0,118390.0,0.81209917]
[1752675264633,0.18824074,118400.0,118390.0,0.00996757]
[1752675264825,0.1688916,118390.0,118380.0,1.40220998]
[1752675265024,0.1688916,118390.0,118380.0,2.03524998]
[1752675266131,0.1688916,118390.0,118380.0,2.03516998]
[1752675267127,0.1688916,118390.0,118380.0,2.58268613]
[1752675267435,0.1688916,118390.0,118380.0,2.68268613]
[1752675268230,0.25333,118400.0,118390.0,0.1688916]
[1752675268434,0.25333,118400.0,118390.0,0.81640775]
[1752675269332,0.25533,118400.0,118390.0,0.1]
[1752675270029,0.27466283,118400.0,118390.0,0.1]
[1752675270236,0.25533,118400.0,118390.0,0.1]
[1752675270627,0.25533,118400.0,118390.0,0.7328]
[1752675270827,0.25533,118400.0,118390.0,0.1]
[1752675271024,0.27466166,118400.0,118390.0,0.1]
[1752675271334,0.27466071,118400.0,118390.0,0.1]
[1752675271535,0.27466071,118400.0,118390.0,0.7326]
[1752675272937,0.82217686,118400.0,118390.0,0.6326]
[1752675273933,0.27466813,118400.0,118390.0,0.6326]
[1752675274529,0.1688916,118390.0,118380.0,1.45445448]
[1752675274730,0.71640775,118390.0,118380.0,1.1771335]
[1752675274937,0.73574946,118390.0,118380.0,1.16712]
[1752675275136,0.1689201,118370.0,118360.0,0.01041253]
[1752675275336,0.73577796,118370.0,118360.0,0.63232]
[1752675275833,0.1689487,118350.0,118340.0,1.62978304]
[1752675276034,0.1689487,118350.0,118340.0,2.70937919]
[1752675276230,0.1689487,118350.0,118340.0,2.16186304]
[1752675276432,0.1689487,118350.0,118340.0,2.07738314]
[1752675276637,0.1689487,118350.0,118340.0,2.62489929]
[1752675277029,0.1689487,118350.0,118340.0,1.44510314]
[1752675277239,0.1689487,118350.0,118340.0,2.08030314]
[1752675277536,0.1689487,118350.0,118340.0,2.03806564]
[1752675278636,0.1689487,118350.0,118340.0,2.59572553]
[1752675278837,0.1689487,118350.0,118340.0,2.04820938]
[1752675279033,0.1689487,118350.0,118340.0,2.59572553]
[1752675279430,0.1689487,118350.0,118340.0,2.04820938]
[1752675279637,0.1689487,118350.0,118340.0,2.59572553]
[1752675280139,0.1689487,118350.0,118340.0,2.04820938]
[1752675280331,0.1689487,118350.0,118340.0,1.87925718]
[1752675280530,0.1689487,118350.0,118340.0,2.04822008]
[1752675280726,0.1689487,118350.0,118340.0,2.59573623]
[1752675280933,0.1689487,118350.0,118340.0,2.04822008]
[1752675281133,0.1689487,118350.0,118340.0,1.87925718]
[1752675281331,0.1689487,118350.0,118340.0,2.04822008]
[1752675282333,0.1689487,118350.0,118340.0,1.87925718]
[1752675282538,0.1689487,118350.0,118340.0,2.04822008]
[1752675283842,0.1689487,118350.0,118340.0,2.59573623]
[1752675284038,0.1689487,118350.0,118340.0,2.04822008]
[1752675284440,0.1689487,118350.0,118340.0,2.59573623]
[1752675284838,0.1689487,118350.0,118340.0,2.42677333]
[1752675285141,0.1689487,118350.0,118340.0,2.04822008]
[1752675285836,0.1689487,118350.0,118340.0,2.59573623]
[1752675286041,0.1689487,118350.0,118340.0,2.04822008]
[1752675286435,0.1689487,118350.0,118340.0,2.59573623]
[1752675286946,0.1689487,118350.0,118340.0,2.51599058]
[1752675287431,0.2111801,118360.0,118350.0,0.1689487]
[1752675287636,0.2304867,118360.0,118350.0,0.2689487]
[1752675287837,0.2304867,118360.0,118350.0,0.6367192]
[1752675288038,0.2304867,118360.0,118350.0,0.4677705]
[1752675288445,0.1689487,118350.0,118340.0,1.71482768]
[1752675288640,0.1689487,118350.0,118340.0,2.34638768]
[1752675288844,0.1689487,118350.0,118340.0,0.07945718]
[1752675289040,0.73670966,118350.0,118340.0,0.01314374]
[1752675289249,0.18825843,118350.0,118340.0,0.63452]
[1752675289445,0.73670966,118350.0,118340.0,0.63152]
[1752675289641,0.18825843,118350.0,118340.0,0.63152]
[1752675289945,0.73670966,118350.0,118340.0,0.63152]
[1752675290147,0.73670966,118350.0,118340.0,0.63452]
[1752675290546,0.18825843,118350.0,118340.0,0.63452]
[1752675291042,0.18825843,118350.0,118340.0,0.64451735]
[1752675291246,0.18925843,118350.0,118340.0,0.64151735]
[1752675291645,0.73770966,118350.0,118340.0,0.63152]
[1752675292045,0.1689772,118330.0,118320.0,0.06730638]
[1752675292245,0.1689772,118330.0,118320.0,0.79846638]
[1752675292246,0.18828693,118330.0,118320.0,0.79846638]
[1752675292541,0.18828693,118330.0,118320.0,1.51590911]
[1752675292947,0.18828693,118330.0,118320.0,0.80869596]
[1752675293147,0.18828693,118330.0,118320.0,0.97768746]
[1752675293347,0.18828693,118330.0,118320.0,0.97868746]
[1752675293953,0.18828693,118330.0,118320.0,1.52713869]
[1752675294150,0.18828693,118330.0,118320.0,0.80961596]
[1752675294548,0.18828693,118330.0,118320.0,0.17833596]
[1752675294755,0.18828693,118330.0,118320.0,0.80957596]
[1752675294952,0.18828693,118330.0,118320.0,0.64254834]
[1752675295153,0.18828693,118330.0,118320.0,0.01130834]
[1752675295352,0.18828693,118330.0,118320.0,0.64246834]
[1752675302363,0.18828693,118330.0,118320.0,1.35991107]
[1752675302559,0.01930973,118330.0,118320.0,1.45991107]
[1752675302764,0.01930973,118330.0,118320.0,1.08048384]
[1752675302960,0.18828693,118330.0,118320.0,1.62893507]
[1752675303167,0.1689602,118350.0,118320.0,1.45994357]
[1752675303364,0.18754192,118360.0,118350.0,0.1689487]
[1752675303661,0.18754192,118360.0,118350.0,1.44807993]
[1752675304369,0.1689432,118360.0,118350.0,0.7996287]
[1752675304563,0.1709432,118360.0,118350.0,0.7996287]
[1752675304867,0.1709432,118360.0,118350.0,0.8996287]
[1752675305268,0.1709432,118360.0,118350.0,0.7996287]
[1752675305762,0.1709432,118360.0,118350.0,0.54845123]
[1752675305966,0.2956828,118350.0,118340.0,0.1689591]
[1752675306170,0.168963,118340.0,118330.0,0.2112174]
[1752675306370,0.168963,118340.0,118330.0,0.7994143]
[1752675306569,0.168963,118340.0,118330.0,0.63044]
[1752675307065,0.71741423,118340.0,118330.0,0.63044]
[1752675307273,0.168963,118340.0,118330.0,0.63044]
[1752675308167,0.1689772,118330.0,118320.0,0.72774077]
[1752675308367,0.1689772,118330.0,118320.0,0.64058834]
[1752675308672,0.1689772,118330.0,118320.0,0.80957984]
[1752675309171,0.1689772,118330.0,118320.0,1.45803107]
[1752675309671,0.1689772,118330.0,118320.0,0.80953984]
[1752675310967,0.1689772,118330.0,118320.0,0.64054834]
[1752675311274,0.1689772,118330.0,118320.0,0.64046834]
[1752675311473,0.1689772,118330.0,118320.0,0.80945984]
[1752675312374,0.1689772,118330.0,118320.0,0.64046834]
[1752675312874,0.1689772,118330.0,118320.0,0.80945984]
[1752675313075,0.1689772,118330.0,118320.0,1.35791107]
[1752675313573,0.1689772,118330.0,118320.0,0.80945984]
[1752675313772,0.2957043,118340.0,118330.0,0.1689772]
[1752675313965,0.2534606,118340.0,118330.0,0.71742843]
[1752675315376,0.27367265,118340.0,118330.0,0.71742843]
[1752675315975,0.27367265,118340.0,118330.0,0.81742843]
[1752675316372,0.27367265,118340.0,118330.0,0.1]
[1752675316574,0.1689772,118330.0,118320.0,1.35803338]
[1752675316769,0.18818925,118330.0,118320.0,0.80918215]
[1752675318677,0.18818925,118330.0,118320.0,0.64008075]
[1752675318875,0.18818925,118330.0,118320.0,0.01044075]
[1752675319070,0.18818925,118330.0,118320.0,0.80903225]
[1752675319270,0.18818925,118330.0,118320.0,0.90903225]
[1752675319470,0.18818925,118330.0,118320.0,0.80903225]
[1752675319679,0.18818925,118330.0,118320.0,0.90903225]
[1752675320072,0.18818925,118330.0,118320.0,1.45748348]
[1752675320273,0.01921205,118330.0,118320.0,1.45748348]
[1752675320478,0.31493114,118340.0,118330.0,0.1689772]
[1752675320675,0.31493123,118340.0,118330.0,0.81742843]
[1752675320972,0.31493123,118340.0,118330.0,0.1689772]
[1752675321568,0.1689772,118330.0,118320.0,1.44196398]
[1752675321768,0.18820503,118330.0,118320.0,0.89351275]
[1752675322369,0.18820503,118330.0,118320.0,0.85126715]
[1752675322569,0.18820503,118330.0,118320.0,0.22166715]
[1752675322774,0.18820503,118330.0,118320.0,0.85102715]
[1752675323281,0.18820503,118330.0,118320.0,0.22166715]
[1752675323481,0.18820503,118330.0,118320.0,0.85098715]
[1752675324476,0.18820503,118330.0,118320.0,0.80874235]
[1752675325477,0.18820503,118330.0,118320.0,1.35719358]
[1752675325683,0.18820503,118330.0,118320.0,1.45719358]
[1752675325884,0.18818379,118330.0,118320.0,1.35719358]
[1752675326080,0.18818372,118330.0,118320.0,1.35719358]
[1752675326274,0.1689772,118330.0,118320.0,1.35719358]
[1752675326683,0.18818583,118330.0,118320.0,1.45719358]
[1752675327181,0.01920863,118330.0,118320.0,1.45719358]
[1752675327379,0.2534585,118340.0,118330.0,0.1689772]
[1752675327580,0.27267519,118340.0,118330.0,0.71742843]
[1752675327786,0.27267519,118340.0,118330.0,0.1689772]
[1752675328184,0.27267519,118340.0,118330.0,0.71742843]
[1752675328586,0.27367519,118340.0,118330.0,0.71742843]
[1752675328890,0.27367519,118340.0,118330.0,0.1689772]
[1752675329093,0.27367519,118340.0,118330.0,0.71742843]
[1752675329389,0.1689772,118330.0,118320.0,0.81236238]
[1752675329590,0.1689772,118330.0,118320.0,1.44124238]
[1752675329890,0.1689772,118330.0,118320.0,1.54124238]
[1752675331289,0.1689772,118330.0,118320.0,1.44120238]
[1752675331495,0.1689772,118330.0,118320.0,1.54120238]
[1752675331897,0.1689772,118330.0,118320.0,1.44120238]
[1752675333294,0.1689772,118330.0,118320.0,1.54120238]
[1752675333596,0.1689772,118330.0,118320.0,0.85026565]
[1752675333896,0.1689772,118330.0,118320.0,1.39871688]
[1752675334196,0.18821603,118330.0,118320.0,1.49871688]
[1752675334699,0.18821603,118330.0,118320.0,1.39871688]
[1752675335293,0.18821603,118330.0,118320.0,1.49871688]
[1752675336398,0.01923883,118330.0,118320.0,1.49871688]
[1752675336591,0.18821603,118330.0,118320.0,1.49871688]
[1752675337192,0.2111759,118360.0,118320.0,1.28749198]
[1752675337394,0.31335503,118370.0,118360.0,0.1689344]
[1752675337593,0.2533979,118370.0,118360.0,1.34570563]
[1752675337988,0.2533979,118370.0,118360.0,0.7972544]
[1752675338196,0.1689324,118370.0,118360.0,1.34570563]
[1752675338698,0.1709324,118370.0,118360.0,1.34570563]
[1752675339101,0.1709324,118370.0,118360.0,0.7972544]
[1752675339299,0.1699324,118370.0,118360.0,1.34570563]
[1752675340496,0.001,118370.0,118360.0,1.44570563]
[1752675342100,0.2533644,118380.0,118370.0,0.1689202]
[1752675342305,0.2533644,118380.0,118360.0,1.47238673]
[1752675342306,0.1689202,118370.0,118360.0,1.47238673]
[1752675342505,0.1689202,118370.0,118360.0,1.57238673]
[1752675343003,0.2111413,118380.0,118370.0,0.1689202]
[1752675343305,0.1689059,118380.0,118370.0,0.94405503]
[1752675343505,0.295578,118390.0,118380.0,0.1689059]
[1752675343698,0.295578,118390.0,118380.0,1.34511713]
[1752675343894,0.2533304,118400.0,118390.0,0.1688916]
[1752675344107,0.2533304,118400.0,118390.0,0.71734283]
[1752675345405,0.1688916,118390.0,118380.0,0.80179563]
[1752675345605,0.1688916,118390.0,118380.0,1.52943563]
[1752675346606,0.2563314,118400.0,118390.0,0.1688916]
[1752675346806,0.2563314,118400.0,118390.0,0.7843674]
[1752675347107,0.2533314,118400.0,118390.0,0.7843674]
[1752675347904,0.2563314,118400.0,118390.0,0.7843674]
[1752675348505,0.2563314,118400.0,118390.0,0.23591617]
[1752675348708,0.2563314,118400.0,118390.0,0.7843674]
[1752675349297,0.003,118400.0,118390.0,0.7843674]
[1752675349503,0.003,118400.0,118390.0,0.8843674]
[1752675349707,0.003,118400.0,118390.0,0.89699064]
[1752675349911,0.1688586,118420.0,118410.0,0.1688631]
[1752675350208,0.0844166,118440.0,118420.0,0.2954649]
[1752675350402,0.1688354,118430.0,118420.0,0.84391613]
[1752675350597,0.18782601,118430.0,118420.0,0.54845123]
[1752675350812,0.1688488,118420.0,118410.0,1.88515433]
[1752675351008,0.1688488,118420.0,118410.0,1.81097462]
[1752675351212,0.1688488,118420.0,118410.0,1.97983772]
[1752675351817,0.1688488,118420.0,118410.0,2.52828895]
[1752675352618,0.1688488,118420.0,118410.0,2.62816895]
[1752675352921,0.1688488,118420.0,118410.0,2.62808895]
[1752675353115,0.1688488,118420.0,118410.0,2.64060203]
[1752675354819,0.2110514,118430.0,118420.0,0.1688488]
[1752675355020,0.2110514,118430.0,118420.0,0.81730003]
[1752675356420,0.1688488,118420.0,118410.0,1.18377462]
[1752675356616,0.1688488,118420.0,118410.0,1.99176256]
[1752675356817,0.1688488,118420.0,118410.0,2.52780895]
[1752675357416,0.1688488,118420.0,118410.0,2.62780895]
[1752675357618,0.1688488,118420.0,118410.0,2.07935772]
[1752675357823,0.1688488,118420.0,118410.0,2.62780895]
[1752675358017,0.1688488,118420.0,118410.0,2.64017248]
[1752675358816,0.16161119,118440.0,118430.0,0.2532321]
[1752675359026,0.22277829,118440.0,118430.0,1.44384583]
[1752675359329,0.20381909,118440.0,118430.0,1.27501123]
[1752675359524,0.20381909,118440.0,118430.0,1.17501123]
[1752675360123,0.20381909,118440.0,118430.0,1.27501123]
[1752675360321,0.20481909,118440.0,118430.0,0.62648]
[1752675360528,0.20481909,118440.0,118430.0,0.54845123]
[1752675360719,0.1688488,118420.0,118410.0,1.18397462]
[1752675360918,0.1688488,118420.0,118410.0,2.37098881]
[1752675361122,0.1688488,118420.0,118410.0,1.74462881]
[1752675361325,0.1688488,118420.0,118410.0,1.19617758]
[1752675361628,0.1688488,118420.0,118410.0,1.82245758]
[1752675361927,0.1688488,118420.0,118410.0,1.81205462]
[1752675362229,0.1688488,118420.0,118410.0,2.36050585]
[1752675362418,0.1688488,118420.0,118410.0,1.81205462]